fUST/lending_fUST_20250415
["ID","MTS","AMOUNT","RATE_DAILY","PERIOD"]
[358093701,1744705842896,-500.0,0.00024657,2]
[358093702,1744705842906,-627.75,0.00024657,2]
[358093703,1744705842917,-792.71,0.00024657,2]
[358093704,1744705842927,-500.0,0.00024657,2]
[358093705,1744705843265,-3356.84616076,0.00024657,2]
[358093714,1744705845356,-150.51622627,0.00024473,2]
[358093715,1744705845366,-150.51622627,0.00024515,2]
[358093716,1744705845376,-38861.92383924,0.00024657,2]
[358093717,1744705845387,-1308.28,0.00024657,2]
[358093718,1744705845396,-2125.62,0.00024657,2]
[358093720,1744705845406,-316.29780764,0.00024657,2]
[358093722,1744705845416,-500.0,0.00024657,2]
[358093724,1744705845426,-912.29,0.00024657,2]
[358093726,1744705845436,-500.0,0.00024657,2]
[358093728,1744705845446,-1746.45,0.00024657,2]
[358093729,1744705845455,-12795.44,0.00024657,2]
[358093730,1744705845466,-710.3,0.00024657,2]
[358093731,1744705845479,-500.0,0.00024657,2]
[358093732,1744705845488,-500.0,0.00024657,2]
[358093733,1744705845498,-500.0,0.00024657,2]
[358093734,1744705845507,-500.0,0.00024657,2]
[358093735,1744705845518,-1626.65,0.00024657,2]
[358093737,1744705845528,-762.79,0.00024657,2]
[358093738,1744705845538,-500.0,0.00024657,2]
[358093739,1744705845548,-500.0,0.00024657,2]
[358093740,1744705845558,-1221.76,0.00024657,2]
[358093741,1744705845567,-500.0,0.00024657,2]
[358093742,1744705845577,-500.0,0.00024657,2]
[358093744,1744705845586,-933.7,0.00024657,2]
[358093745,1744705845596,-592.16,0.00024657,2]
[358093746,1744705845605,-295.14380609,0.00024657,2]
[358093747,1744705845614,-500.0,0.00024657,2]
[358093748,1744705845624,-548.61,0.00024657,2]
[358093749,1744705845634,-500.0,0.00024657,2]
[358093750,1744705845644,-500.0,0.00024657,2]
[358093751,1744705845653,-500.0,0.00024657,2]
[358093752,1744705845663,-500.0,0.00024657,2]
[358093753,1744705845672,-500.0,0.00024657,2]
[358093754,1744705845681,-812.36,0.00024657,2]
[358093755,1744705845691,-500.0,0.00024657,2]
[358093756,1744705845701,-500.0,0.00024657,2]
[358093757,1744705845711,-680.83,0.00024657,2]
[358093758,1744705845720,-500.0,0.00024657,2]
[358093759,1744705845730,-665.76,0.00024657,2]
[358093760,1744705845739,-500.0,0.00024657,2]
[358093761,1744705845749,-500.0,0.00024657,2]
[358093762,1744705845758,-779.97,0.00024657,2]
[358093763,1744705845769,-500.0,0.00024657,2]
[358093765,1744705845778,-500.0,0.00024657,2]
[358093766,1744705845788,-500.0,0.00024657,2]
[358093767,1744705845797,-1481.39,0.00024657,2]
[358093768,1744705845807,-500.0,0.00024657,2]
[358093769,1744705845817,-500.0,0.00024657,2]
[358093770,1744705845826,-500.0,0.00024657,2]
[358093771,1744705845835,-873.39,0.00024657,2]
[358093772,1744705845844,-616.69,0.00024657,2]
[358093773,1744705845854,-500.0,0.00024657,2]
[358093774,1744705845863,-169.0,0.00024657,3]
[358093775,1744705845875,-300.12929181,0.00024657,3]
[358093776,1744705845885,-432.03280267,0.00024657,2]
[358093777,1744705846391,-150.51622627,0.00024557,2]
[358093778,1744705846401,-2042.26719733,0.00024657,2]
[358093779,1744705846410,-500.0,0.00024657,2]
[358093780,1744705846420,-500.0,0.00024657,2]
[358093781,1744705846429,-500.0,0.00024657,2]
[358093782,1744705846439,-500.0,0.00024657,2]
[358093783,1744705846448,-500.0,0.00024657,2]
[358093784,1744705846458,-500.0,0.00024657,2]
[358093785,1744705846468,-687.71,0.00024657,2]
[358093786,1744705846481,-500.0,0.00024657,2]
[358093787,1744705846491,-358.0,0.00024657,3]
[358093788,1744705846501,-3023.29,0.00024657,2]
[358093789,1744705846512,-500.0,0.00024657,2]
[358093790,1744705846521,-501.40156226,0.00024657,2]
[358093791,1744705846531,-162.18716704,0.00024657,2]
[358093792,1744705846697,-1540.72283296,0.00024657,2]
[358093793,1744705846720,-1516.21,0.00024657,2]
[358093794,1744705846731,-500.0,0.00024657,2]
[358093795,1744705846741,-1538.83,0.00024657,2]
[358093796,1744705846751,-993.65336763,0.00024657,2]
[358093797,1744705863291,-250.0,0.0002384,2]
[358093798,1744705863315,-1.85120492,0.00024656,2]
[358093799,1744705875952,-248.21615533,0.00024457,2]
[358093800,1744705893820,-250.0,0.00022515,2]
[358093801,1744705893847,-258.99010534,0.00024457,2]
[358093802,1744705960563,-290.23473368,0.00024456,2]
[358093824,1744706622984,-156.88,0.00023556,2]
[358093825,1744706624727,-399.92661106,0.00023556,2]
[358093831,1744706878248,-175.43706077,0.00023302,2]
[358093879,1744707031949,-124.56293923,0.00023302,2]
[358093880,1744707031959,-236.3900697,0.00023454,2]
[358093882,1744707031970,-158.8567701,0.00023481,2]
[358093884,1744707031980,-564.93673579,0.00023556,2]
[358093887,1744707032003,-114.30013055,0.00023556,2]
[358093889,1744707032012,-307.298228,0.00023693,2]
[358093891,1744707032023,-195.98,0.00024447,2]
[358093892,1744707032033,-300.0,0.00024455,2]
[358093893,1744707032043,-300.0,0.00024455,2]
[358093894,1744707032052,-4119.92117434,0.00024456,2]
[358093895,1744707032062,-165.4889066,0.00024456,2]
[358093896,1744707032073,-6000.0,0.00024456,2]
[358093897,1744707032083,-2443.81872357,0.00024456,2]
[358093898,1744707032092,-82515.56965534,0.00024457,2]
[358093899,1744707032105,-939.52,0.00024457,2]
[358093900,1744707032116,-17172.41286817,0.00024457,2]
[358093901,1744707033343,-645.85684651,0.00024457,2]
[358093961,1744707038441,-14933.87757925,0.00024457,2]
[358094014,1744707039062,-211.12062847,0.00024457,2]
[358094048,1744707043176,-451.98714949,0.00024457,2]
[358094056,1744707044693,-211.12062847,0.00024457,2]
[358094074,1744707046006,-753.5,0.00024457,2]
[358094075,1744707046163,-6208.45699298,0.00024457,2]
[358094076,1744707047970,-275.07509148,0.00024457,2]
[358094077,1744707063158,-300.0,0.00024457,2]
[358094078,1744707068729,-300.0,0.00024457,2]
[358094079,1744707125307,-300.0,0.00024457,2]
[358094080,1744707201829,-152.18463873,0.00024457,2]
[358094086,1744707317465,-242.68258862,0.00024357,2]
[358094088,1744707379058,-199.35156706,0.00024356,2]
[358094089,1744707454223,-307.2982299,0.00023616,2]
[358094092,1744707553790,-338.48117653,0.0002364,2]
[358094098,1744707798808,-199.2510479,0.0002317,2]
[358094099,1744707798833,-21.06192408,0.0002364,2]
[358094101,1744707857743,-300.0,0.0002364,2]
[358094102,1744707895361,-197.31205807,0.0002364,2]
[358094103,1744707920532,-211.24294482,0.0002364,2]
[358094104,1744707920557,-34.18048605,0.00024,2]
[358094105,1744707923566,-154.81951395,0.00024,2]
[358094106,1744707923590,-49.81542935,0.00024356,2]
[358094142,1744708238254,-300.0,0.00024356,2]
[358094145,1744708238265,-300.0,0.00024356,2]
[358094147,1744708238275,-900.83,0.00024357,2]
[358094157,1744708238358,-7328.92948848,0.00024357,2]
[358094159,1744708238368,-1000.0,0.00024357,2]
[358094161,1744708238378,-5000.0,0.00024538,2]
[358094163,1744708238387,-165.4889066,0.00024557,2]
[358094165,1744708238397,-151.0,0.00024642,2]
[358094167,1744708238406,-151.0,0.00024642,2]
[358094168,1744708238415,-207.4,0.00024642,2]
[358094169,1744708238425,-156.88,0.00024656,2]
[358094170,1744708238434,-183.7019372,0.00024656,2]
[358094171,1744708238444,-176.88659458,0.00024656,2]
[358094172,1744708238454,-500.0,0.00024656,2]
[358094173,1744708238463,-547.9241839,0.00024656,2]
[358094174,1744708238474,-500.0,0.00024656,2]
[358094175,1744708238484,-432.84265377,0.00024656,2]
[358094176,1744708238494,-495.38806346,0.00024656,2]
[358094177,1744708238503,-9496.94973664,0.00024657,2]
[358094178,1744708238512,-228.83119113,0.00024657,3]
[358094179,1744708238522,-500.0,0.00024657,2]
[358094180,1744708238532,-500.0,0.00024657,2]
[358094181,1744708238541,-500.0,0.00024657,2]
[358094182,1744708238551,-500.0,0.00024657,2]
[358094208,1744708238827,-500.0,0.00024657,2]
[358094210,1744708238837,-500.0,0.00024657,2]
[358094212,1744708238847,-500.0,0.00024657,2]
[358094214,1744708238856,-500.0,0.00024657,2]
[358094216,1744708238866,-500.0,0.00024657,2]
[358094218,1744708238876,-500.0,0.00024657,2]
[358094220,1744708238890,-500.0,0.00024657,2]
[358094222,1744708238905,-503.42151469,0.00024657,2]
[358094224,1744708238915,-500.0,0.00024657,2]
[358094226,1744708238924,-500.0,0.00024657,2]
[358094228,1744708238933,-757.58,0.00024657,2]
[358094230,1744708238943,-230.75015256,0.00024657,2]
[358094410,1744708240562,-0.03969743,0.00024656,2]
[358095394,1744708313384,-272.47812038,0.00022557,2]
[358095397,1744708612185,-289.21674193,0.00022557,2]
[358095399,1744708681505,-254.0674438,0.00022457,2]
[358095402,1744708913239,-189.64229219,0.00022557,2]
[358095403,1744708947539,-159.2676,0.00022557,2]
[358095404,1744708959279,-250.0,0.00022557,2]
[358095409,1744709217452,-377.24027725,0.00020457,2]
[358095410,1744709240821,-341.317121,0.00020457,2]
[358095411,1744709272711,-158.683,0.00020457,2]
[358095412,1744709290299,-190.471437,0.00020457,2]
[358095413,1744709305420,-166.7946333,0.000189,2]
[358095414,1744709308712,1407.48517916,0.000176,2]
[358095415,1744709318921,-11.00850022,0.000189,2]
[358095416,1744709318945,-148.99149978,0.00020457,2]
[358095417,1744709322896,-152.49188077,0.0002,2]
[358095418,1744709328593,-160.0,0.0002,2]
[358095420,1744709350013,-45.04697315,0.0002,2]
[358095421,1744709350035,-105.95302685,0.0002,2]
[358095422,1744709363643,-437.0307,0.0002,2]
[358095423,1744709380490,-188.844,0.0002,2]
[358095428,1744709395923,-269.83242,0.0002,2]
[358095429,1744709403621,-151.0,0.0002,2]
[358095441,1744709432345,-151.0,0.000198,2]
[358095442,1744709432356,-25.67521717,0.0002,2]
[358095443,1744709432366,-542.03303324,0.00020457,2]
[358095444,1744709432375,-1163.16878923,0.0002061,2]
[358095445,1744709432385,-266.24687637,0.00021,2]
[358095446,1744709432395,-151.67744638,0.00022512,2]
[358095447,1744709432405,-300.0,0.00023466,2]
[358095448,1744709432415,-300.0,0.00023466,2]
[358095449,1744709432425,-10749.2607079,0.00023467,2]
[358095450,1744709432436,-160.806786,0.00023545,2]
[358095451,1744709432446,-419.375,0.0002362,2]
[358095452,1744709432456,-166.4520314,0.00023639,2]
[358095453,1744709432466,-295.072094,0.0002364,2]
[358095454,1744709432476,-156.86,0.0002364,2]
[358095455,1744709432486,-1000.0,0.00024556,2]
[358095456,1744709432496,-920.49909181,0.00024557,2]
[358095457,1744709432506,-264.78225056,0.00024557,2]
[358095458,1744709432516,-2974.79813204,0.00024557,2]
[358095459,1744709432526,-151.0,0.00024642,2]
[358095460,1744709432536,-151.0,0.00024642,2]
[358095461,1744709432547,-207.4,0.00024642,2]
[358095462,1744709432557,-300.44003103,0.00024646,2]
[358095463,1744709432567,-183.7019372,0.00024656,2]
[358095464,1744709432577,-176.88659458,0.00024656,2]
[358095465,1744709432586,-500.0,0.00024656,2]
[358095466,1744709432596,-233.54692873,0.00024656,2]
[358095467,1744709432606,-500.0,0.00024656,2]
[358095468,1744709432616,-500.0,0.00024656,2]
[358095469,1744709432626,-500.0,0.00024656,2]
[358095470,1744709432636,-500.0,0.00024656,2]
[358095471,1744709432646,-500.0,0.00024656,2]
[358095472,1744709432656,-500.0,0.00024656,2]
[358095473,1744709432666,-500.0,0.00024656,2]
[358095474,1744709432676,-500.0,0.00024656,2]
[358095475,1744709432687,-500.0,0.00024656,2]
[358095476,1744709432697,-500.0,0.00024656,2]
[358095477,1744709432707,-500.0,0.00024656,2]
[358095478,1744709432717,-500.0,0.00024656,2]
[358095479,1744709432726,-500.0,0.00024656,2]
[358095480,1744709432736,-542.99191608,0.00024656,2]
[358095481,1744709432746,-500.0,0.00024656,2]
[358095482,1744709432755,-6042.01894793,0.00024657,2]
[358095483,1744709432765,-1166.49622992,0.00024657,3]
[358095484,1744709432775,-500.0,0.00024657,2]
[358095485,1744709432785,-500.0,0.00024657,2]
[358095486,1744709432795,-500.0,0.00024657,2]
[358095487,1744709432805,-500.0,0.00024657,2]
[358095488,1744709432815,-500.0,0.00024657,2]
[358095489,1744709432824,-501.3259305,0.00024657,2]
[358095490,1744709432834,-500.0,0.00024657,2]
[358095491,1744709432846,-500.0,0.00024657,2]
[358095492,1744709432856,-500.0,0.00024657,2]
[358095493,1744709432867,-500.0,0.00024657,2]
[358095494,1744709432878,-500.0,0.00024657,2]
[358095495,1744709432888,-500.0,0.00024657,2]
[358095496,1744709432897,-500.0,0.00024657,2]
[358095497,1744709432907,-500.0,0.00024657,2]
[358095498,1744709432917,-564.64354842,0.00024657,2]
[358095499,1744709432929,-500.0,0.00024657,2]
[358095500,1744709432943,-500.0,0.00024657,2]
[358095501,1744709432953,-500.0,0.00024657,2]
[358095502,1744709432963,-500.0,0.00024657,2]
[358095503,1744709432973,-500.0,0.00024657,2]
[358095504,1744709432984,-500.0,0.00024657,2]
[358095505,1744709432994,-500.0,0.00024657,2]
[358095506,1744709433004,-500.0,0.00024657,2]
[358095507,1744709433014,-500.0,0.00024657,2]
[358095508,1744709433024,-500.0,0.00024657,2]
[358095509,1744709433035,-500.0,0.00024657,2]
[358095510,1744709433046,-731.01,0.00024657,2]
[358095511,1744709433057,-500.0,0.00024657,2]
[358095512,1744709433067,-500.0,0.00024657,2]
[358095513,1744709433078,-638.02,0.00024657,2]
[358095514,1744709433088,-500.0,0.00024657,2]
[358095515,1744709433099,-2371.2,0.00024657,2]
[358095516,1744709433110,-500.00000001,0.00024657,2]
[358095517,1744709433120,-639.12471708,0.00024657,2]
[358095518,1744709433131,-500.0,0.00024657,2]
[358095519,1744709433141,-500.0,0.00024657,2]
[358095520,1744709433151,-500.0,0.00024657,2]
[358095521,1744709433161,-1115.03,0.00024657,2]
[358095522,1744709433171,-500.0,0.00024657,2]
[358095523,1744709433182,-500.0,0.00024657,2]
[358095524,1744709433194,-1434.2,0.00024657,2]
[358095525,1744709433205,-500.0,0.00024657,2]
[358095526,1744709433215,-682.54,0.00024657,2]
[358095527,1744709433225,-500.0,0.00024657,2]
[358095528,1744709433235,-500.0,0.00024657,2]
[358095529,1744709433245,-500.0,0.00024657,2]
[358095530,1744709433255,-500.0,0.00024657,2]
[358095531,1744709433265,-500.0,0.00024657,2]
[358095532,1744709433276,-500.0,0.00024657,2]
[358095533,1744709433286,-334.09060528,0.00024657,2]
[358095534,1744709433302,-165.90939472,0.00024657,2]
[358095535,1744709433312,-500.0,0.00024657,2]
[358095536,1744709433323,-500.0,0.00024657,2]
[358095537,1744709433333,-500.0,0.00024657,2]
[358095538,1744709433343,-793.82,0.00024657,2]
[358095539,1744709433353,-500.0,0.00024657,2]
[358095540,1744709433363,-500.0,0.00024657,2]
[358095541,1744709433373,-500.0,0.00024657,2]
[358095542,1744709433384,-500.0,0.00024657,2]
[358095543,1744709433396,-1140.63,0.00024657,2]
[358095544,1744709433407,-500.0,0.00024657,2]
[358095545,1744709433419,-500.0,0.00024657,2]
[358095546,1744709433431,-500.0,0.00024657,2]
[358095547,1744709433444,-535.84,0.00024657,2]
[358095548,1744709433454,-500.0,0.00024657,2]
[358095549,1744709433464,-22.15236759,0.00024657,2]
[358095550,1744709433478,-477.84763241,0.00024657,2]
[358095551,1744709433490,-500.0,0.00024657,2]
[358095552,1744709433500,-500.0,0.00024657,2]
[358095553,1744709433510,-527.61,0.00024657,2]
[358095554,1744709433521,-500.0,0.00024657,2]
[358095555,1744709433532,-500.0,0.00024657,2]
[358095556,1744709433543,-949.08,0.00024657,2]
[358095557,1744709433554,-746.61,0.00024657,2]
[358095558,1744709433565,-500.0,0.00024657,2]
[358095559,1744709433575,-500.0,0.00024657,2]
[358095560,1744709433585,-500.0,0.00024657,2]
[358095561,1744709433595,-500.0,0.00024657,2]
[358095562,1744709433606,-500.0,0.00024657,2]
[358095563,1744709433616,-503.82126017,0.00024657,2]
[358095564,1744709433627,-500.0,0.00024657,2]
[358095565,1744709433636,-511.72181897,0.00024657,2]
[358095566,1744709433646,-507.99458527,0.00024657,2]
[358095567,1744709433657,-507.43433809,0.00024657,2]
[358095568,1744709433667,-835.81,0.00024657,2]
[358095569,1744709433677,-504.24331501,0.00024657,2]
[358095570,1744709433687,-514.62508614,0.00024657,2]
[358095571,1744709433698,-501.19156446,0.00024657,2]
[358095572,1744709433709,-500.0,0.00024657,2]
[358095573,1744709433719,-500.79410543,0.00024657,2]
[358095574,1744709433729,-502.82271921,0.00024657,2]
[358095575,1744709433739,-500.5577889,0.00024657,2]
[358095576,1744709433750,-511.30141623,0.00024657,2]
[358095577,1744709433759,-509.5849569,0.00024657,2]
[358095578,1744709433769,-501.0001244,0.00024657,2]
[358095579,1744709433779,-585.94814059,0.00024657,2]
[358095580,1744709433789,-506.13254504,0.00024657,2]
[358095581,1744709433799,-500.0,0.00024657,2]
[358095582,1744709433808,-506.11749463,0.00024657,2]
[358095583,1744709433818,-500.0,0.00024657,2]
[358095584,1744709433828,-525.0,0.00024657,2]
[358095585,1744709433838,-671.53,0.00024657,2]
[358095586,1744709433851,-503.28957082,0.00024657,2]
[358095587,1744709433862,-164.53240143,0.00024657,2]
[358095588,1744709433872,-500.0,0.00024657,2]
[358095589,1744709433883,-500.0,0.00024657,2]
[358095590,1744709433893,-776.42,0.00024657,2]
[358095591,1744709433903,-500.0,0.00024657,2]
[358095592,1744709433914,-500.0,0.00024657,2]
[358095593,1744709433926,-500.0,0.00024657,2]
[358095594,1744709433938,-500.0,0.00024657,2]
[358095595,1744709433950,-500.0,0.00024657,2]
[358095596,1744709433960,-500.0,0.00024657,2]
[358095597,1744709433971,-500.0,0.00024657,2]
[358095598,1744709433981,-300.0,0.00024657,2]
[358095599,1744709433992,-500.0,0.00024657,2]
[358095600,1744709434002,-500.0,0.00024657,2]
[358095601,1744709434012,-500.0,0.00024657,2]
[358095602,1744709434023,-532.54,0.00024657,2]
[358095603,1744709434033,-500.0,0.00024657,2]
[358095604,1744709434043,-670.05,0.00024657,2]
[358095605,1744709434054,-500.0,0.00024657,2]
[358095606,1744709434065,-500.0,0.00024657,2]
[358095607,1744709434075,-500.0,0.00024657,2]
[358095608,1744709434085,-948.31,0.00024657,2]
[358095609,1744709434095,-2308.22,0.00024657,2]
[358095610,1744709434106,-500.0,0.00024657,2]
[358095611,1744709434116,-500.0,0.00024657,2]
[358095612,1744709434127,-500.0,0.00024657,2]
[358095613,1744709434137,-500.0,0.00024657,2]
[358095614,1744709434147,-1109.64,0.00024657,2]
[358095615,1744709434157,-500.0,0.00024657,2]
[358095616,1744709434167,-500.0,0.00024657,2]
[358095617,1744709434177,-508.60267655,0.00024657,2]
[358095618,1744709434187,-854.21,0.00024657,2]
[358095619,1744709434198,-151.0,0.00024657,7]
[358095620,1744709434208,-151.0,0.00024657,7]
[358095621,1744709434218,-151.0,0.00024657,7]
[358095622,1744709434228,-500.0,0.00024657,2]
[358095623,1744709434238,-629.463808,0.00024657,2]
[358095624,1744709434249,-1127.43,0.00024657,2]
[358095625,1744709434259,-577.41239345,0.00024657,2]
[358095626,1744709434270,-843.88,0.00024657,2]
[358095627,1744709434280,-1050.59,0.00024657,2]
[358095628,1744709434291,-734.75,0.00024657,2]
[358095629,1744709434301,-500.0,0.00024657,2]
[358095630,1744709434311,-500.0,0.00024657,2]
[358095631,1744709434321,-510.04,0.00024657,2]
[358095632,1744709434332,-500.0,0.00024657,2]
[358095633,1744709434342,-500.0,0.00024657,2]
[358095634,1744709434352,-500.0,0.00024657,2]
[358095635,1744709434362,-607.89,0.00024657,2]
[358095636,1744709434372,-500.0,0.00024657,2]
[358095637,1744709434383,-543.02980758,0.00024657,2]
[358095638,1744709434393,-1169.65,0.00024657,2]
[358095639,1744709434404,-500.0,0.00024657,2]
[358095640,1744709434415,-618.89,0.00024657,2]
[358095641,1744709434425,-500.0,0.00024657,2]
[358095642,1744709434435,-576.37,0.00024657,2]
[358095643,1744709434445,-549.8,0.00024657,2]
[358095644,1744709434456,-656.72,0.00024657,2]
[358095645,1744709434465,-500.0,0.00024657,2]
[358095646,1744709434476,-940.26,0.00024657,2]
[358095647,1744709434486,-500.0,0.00024657,2]
[358095648,1744709434496,-964.66,0.00024657,2]
[358095649,1744709434506,-500.0,0.00024657,2]
[358095650,1744709434516,-500.0,0.00024657,2]
[358095651,1744709434527,-1069.92,0.00024657,2]
[358095652,1744709434537,-827.13,0.00024657,2]
[358095653,1744709434547,-500.0,0.00024657,2]
[358095654,1744709434557,-500.0,0.00024657,2]
[358095655,1744709434569,-500.0,0.00024657,2]
[358095656,1744709434579,-863.46,0.00024657,2]
[358095657,1744709434590,-500.0,0.00024657,2]
[358095658,1744709434601,-500.0,0.00024657,2]
[358095659,1744709434611,-515.63292611,0.00024657,2]
[358095660,1744709434623,-500.0,0.00024657,2]
[358095661,1744709434633,-534.03,0.00024657,2]
[358095662,1744709434644,-500.0,0.00024657,2]
[358095663,1744709434655,-917.35,0.00024657,2]
[358095664,1744709434666,-505.00381914,0.00024657,2]
[358095665,1744709434676,-500.0,0.00024657,2]
[358095666,1744709434687,-500.0,0.00024657,2]
[358095667,1744709434697,-797.76,0.00024657,2]
[358095668,1744709434708,-1707.85,0.00024657,2]
[358095669,1744709434718,-500.0,0.00024657,2]
[358095670,1744709434728,-578.03,0.00024657,2]
[358095671,1744709434738,-500.0,0.00024657,2]
[358095672,1744709434748,-500.0,0.00024657,2]
[358095673,1744709434758,-759.18,0.00024657,2]
[358095674,1744709434769,-500.0,0.00024657,2]
[358095675,1744709434779,-500.0,0.00024657,2]
[358095676,1744709434789,-306.7055286,0.00024657,2]
[358095677,1744709434801,-500.0,0.00024657,2]
[358095678,1744709434811,-500.0,0.00024657,2]
[358095679,1744709434822,-500.0,0.00024657,2]
[358095680,1744709434832,-500.0,0.00024657,2]
[358095681,1744709434844,-500.0,0.00024657,2]
[358095682,1744709434856,-723.82,0.00024657,2]
[358095683,1744709434866,-500.0,0.00024657,2]
[358095684,1744709434877,-500.0,0.00024657,2]
[358095685,1744709434888,-500.0,0.00024657,2]
[358095686,1744709434898,-500.0,0.00024657,2]
[358095687,1744709434908,-500.0,0.00024657,2]
[358095688,1744709434918,-1636.23,0.00024657,2]
[358095689,1744709434930,-500.0,0.00024657,2]
[358095690,1744709434943,-500.0,0.00024657,2]
[358095691,1744709434954,-500.0,0.00024657,2]
[358095692,1744709434964,-500.0,0.00024657,2]
[358095693,1744709434975,-500.0,0.00024657,2]
[358095694,1744709434985,-500.0,0.00024657,2]
[358095695,1744709434996,-500.0,0.00024657,2]
[358095696,1744709435006,-500.0,0.00024657,2]
[358095697,1744709435016,-824.71,0.00024657,2]
[358095698,1744709435026,-500.0,0.00024657,2]
[358095699,1744709435036,-500.0,0.00024657,2]
[358095700,1744709435047,-970.94,0.00024657,2]
[358095701,1744709435057,-500.0,0.00024657,2]
[358095702,1744709435067,-500.0,0.00024657,2]
[358095703,1744709435077,-500.0,0.00024657,2]
[358095704,1744709435087,-500.0,0.00024657,2]
[358095705,1744709435097,-500.0,0.00024657,2]
[358095706,1744709435108,-1515.1,0.00024657,2]
[358095707,1744709435118,-500.0,0.00024657,2]
[358095708,1744709435128,-872.76,0.00024657,2]
[358095709,1744709435138,-500.0,0.00024657,2]
[358095710,1744709435148,-678.36,0.00024657,2]
[358095711,1744709435158,-700.42,0.00024657,2]
[358095712,1744709435169,-723.79,0.00024657,2]
[358095713,1744709435180,-952.19,0.00024657,2]
[358095714,1744709435191,-430.84146691,0.00024657,2]
[358095715,1744709435202,-500.0,0.00024657,2]
[358095716,1744709435213,-292.08124095,0.00024657,2]
[358095717,1744709435223,-500.0,0.00024657,2]
[358095718,1744709435235,-500.0,0.00024657,2]
[358095719,1744709435246,-500.0,0.00024657,2]
[358095720,1744709435256,-483.00501912,0.00024657,2]
[358095721,1744709435266,-554.18,0.00024657,2]
[358095722,1744709435277,-500.0,0.00024657,2]
[358095723,1744709435287,-500.0,0.00024657,2]
[358095724,1744709435298,-500.0,0.00024657,2]
[358095725,1744709435308,-500.0,0.00024657,2]
[358095726,1744709435319,-500.0,0.00024657,2]
[358095727,1744709435329,-500.0,0.00024657,2]
[358095728,1744709435339,-511.73611036,0.00024657,2]
[358095729,1744709435349,-500.0,0.00024657,2]
[358095730,1744709435360,-500.0,0.00024657,2]
[358095731,1744709435371,-500.0,0.00024657,2]
[358095732,1744709435382,-500.0,0.00024657,2]
[358095733,1744709435392,-500.0,0.00024657,2]
[358095734,1744709435402,-171.60490181,0.00024657,2]
[358095794,1744709438673,-176.88659458,0.00024656,2]
[358095796,1744709438683,-328.39509819,0.00024657,2]
[358095798,1744709438695,-500.0,0.00024657,2]
[358095800,1744709438705,-500.0,0.00024657,2]
[358095802,1744709438715,-532.88426926,0.00024657,2]
[358095804,1744709438723,-500.0,0.00024657,2]
[358095806,1744709438732,-500.0,0.00024657,2]
[358095808,1744709438741,-500.0,0.00024657,2]
[358095810,1744709438751,-726.01,0.00024657,2]
[358095812,1744709438760,-1419.66,0.00024657,2]
[358095814,1744709438770,-500.0,0.00024657,2]
[358095816,1744709438779,-221.66190054,0.00024657,2]
[358095819,1744709438799,-527.46863838,0.00024657,2]
[358095821,1744709438810,-500.0,0.00024657,2]
[358095823,1744709438820,-923.05,0.00024657,2]
[358095826,1744709438831,-500.0,0.00024657,2]
[358095828,1744709438845,-1631.95,0.00024657,2]
[358095830,1744709438855,-579.87,0.00024657,2]